Workbook

Sheet паспорт
A1: ПАТ "УКРТРАНСГАЗ" | G1: ПАСПОРТ ФІЗИКО-ХІМІЧНИХ ПОКАЗНИКІВ ПРИРОДНОГО ГАЗУ № 168
A2: Філія "УМГ "КИЇВТРАНСГАЗ" | G2: переданого Чернігівським ЛВУМГ та прийнятого ПАТ "Чернігівгаз"
A3: Чернігівське ЛВУМГ | G3: Маршрут № 168
A4: Вимірювальна хіміко-аналітична лабораторія
A5: Свідоцтво № 74/2014 чинно до 01.07.2019 р. | K5: по газопроводу "ДАШАВА-КИЇВ-БРЯНСЬК-МОСКВА" | V5: за період з | X5: 2017-05-01 | Z5: по | AA5: 2017-05-31
A7: Число місяця | B7: Компонентний склад, % мол. | N7: Фізико-хімічні показники газу обчислені на основі компонентного складу, 101,325 кПа | X7: Температура точки роси за вологою (Р = 3.92 МПа), ºС | Y7: Температура точки роси за вуглеводнями, ºС | Z7: Вміст сірководню, г/м3 | AA7: Вміст меркаптанової сірки, г/м3 | AB7: Вміст механічних домішок, г/м3
N8: Густина абсолютна, кг/м3,при 20 ºС, | O8: Температура вимірювання/згоряння при 20/25°С
B9: метан, С1 | C9: етан, С2 | D9: пропан, С3 | E9: ізо-бутан, і-С4 | F9: н-бутан, н-С4 | G9: нео-пентан, нео-С5 | H9: ізо-пентан, і-С5 | I9: н-пентан, н-С5 | J9: гексани та вищі, С6+ | K9: кисень, О2 | L9: азот, N2 | M9: діоксид вуглецю, CО2 | O9: Теплота згоряння нижча | R9: Теплота згоряння вища | U9: Число Воббе вище
O10: ккал/м3 | P10: МДж/м3 | Q10: кВт⋅год/м3 | R10: ккал/м3 | S10: МДж/м3 | T10: кВт⋅год/м3 | U10: ккал/м3 | V10: МДж/м3 | W10: кВт⋅год/м3
A11: 1 | O11: 8214 | P11: 34.39 | Q11: 9.55 | R11: 9095 | S11: 38.08 | T11: 10.58 | AC11: =SUM(B11:M11)+$K$42+$N$42 -> 0
A12: 2 | O12: 8214 | P12: 34.39 | Q12: 9.55 | R12: 9095 | S12: 38.08 | T12: 10.58 | AC12: 0
A13: 3 | O13: 8214 | P13: 34.39 | Q13: 9.55 | R13: 9095 | S13: 38.08 | T13: 10.58 | AC13: 0 | AD13: =IF(AC13=100,"ОК"," ") -> 
A14: 4 | B14: 89.5067 | C14: 5.0358 | D14: 1.1854 | E14: 0.1262 | F14: 0.2227 | G14: 0.0042 | H14: 0.0594 | I14: 0.0443 | J14: 0.0479 | K14: 0.0037 | L14: 1.7776 | M14: 1.986 | N14: 0.7538 | O14: 8252 | P14: 34.55 | Q14: 9.6 | R14: 9135 | S14: 38.25 | T14: 10.63 | U14: 11548 | V14: 48.35 | W14: 13.43 | X14: -9.9 | Y14: -10.5 | Z14: 0.0001 | AA14: 0.0004 | AB14: відс. | AC14: 99.9999 | AD14: =IF(AC14=100,"ОК"," ") -> 
A15: 5 | O15: 8252 | P15: 34.55 | Q15: 9.6 | R15: 9135 | S15: 38.25 | T15: 10.63 | AC15: 0
A16: 6 | O16: 8252 | P16: 34.55 | Q16: 9.6 | R16: 9135 | S16: 38.25 | T16: 10.63 | AC16: 0
A17: 7 | O17: 8252 | P17: 34.55 | Q17: 9.6 | R17: 9135 | S17: 38.25 | T17: 10.63 | AC17: 0
A18: 8 | O18: 8252 | P18: 34.55 | Q18: 9.6 | R18: 9135 | S18: 38.25 | T18: 10.63 | AC18: =SUM(B18:M18)+$K$42+$N$42 -> 0
A19: 9 | O19: 8252 | P19: 34.55 | Q19: 9.6 | R19: 9135 | S19: 38.25 | T19: 10.63 | AC19: 0
A20: 10 | O20: 8252 | P20: 34.55 | Q20: 9.6 | R20: 9135 | S20: 38.25 | T20: 10.63 | AC20: 0
A21: 11 | B21: 89.5594 | C21: 4.9799 | D21: 1.1657 | E21: 0.123 | F21: 0.2371 | G21: 0.0041 | H21: 0.0602 | I21: 0.0443 | J21: 0.0593 | K21: 0.0037 | L21: 1.7268 | M21: 2.0366 | N21: 0.7541 | O21: 8252 | P21: 34.55 | Q21: 9.6 | R21: 9135 | S21: 38.25 | T21: 10.63 | U21: 11543 | V21: 48.33 | W21: 13.43 | X21: -9.7 | Y21: -10.1 | Z21: 0.0001 | AA21: 0.0004 | AB21: відс. | AC21: 100.0001
A22: 12 | O22: 8252 | P22: 34.55 | Q22: 9.6 | R22: 9135 | S22: 38.25 | T22: 10.63 | AC22: 0
A23: 13 | O23: 8252 | P23: 34.55 | Q23: 9.6 | R23: 9135 | S23: 38.25 | T23: 10.63 | AC23: 0
A24: 14 | O24: 8252 | P24: 34.55 | Q24: 9.6 | R24: 9135 | S24: 38.25 | T24: 10.63 | AC24: 0
A25: 15 | B25: 89.6475 | C25: 5.0093 | D25: 1.0802 | E25: 0.114 | F25: 0.1886 | G25: 0.0041 | H25: 0.0484 | I25: 0.0345 | J25: 0.0303 | K25: 0.0052 | L25: 1.7631 | M25: 2.0747 | N25: 0.7516 | O25: 8212 | P25: 34.38 | Q25: 9.55 | R25: 9092 | S25: 38.07 | T25: 10.58 | U25: 11510 | V25: 48.19 | W25: 13.39 | X25: -10.9 | Y25: -10.5 | Z25: 0.0001 | AA25: 0.0004 | AB25: відс. | AC25: 99.9999
A26: 16 | O26: 8212 | P26: 34.38 | Q26: 9.55 | R26: 9092 | S26: 38.07 | T26: 10.58 | AC26: 0
A27: 17 | O27: 8212 | P27: 34.38 | Q27: 9.55 | R27: 9092 | S27: 38.07 | T27: 10.58 | AC27: 0
A28: 18 | O28: 8212 | P28: 34.38 | Q28: 9.55 | R28: 9092 | S28: 38.07 | T28: 10.58 | AC28: 0
A29: 19 | O29: 8212 | P29: 34.38 | Q29: 9.55 | R29: 9092 | S29: 38.07 | T29: 10.58 | AC29: 0
A30: 20 | O30: 8212 | P30: 34.38 | Q30: 9.55 | R30: 9092 | S30: 38.07 | T30: 10.58 | AC30: 0 | AD30: =IF(AC30=100,"ОК"," ") -> 
A31: 21 | O31: 8212 | P31: 34.38 | Q31: 9.55 | R31: 9092 | S31: 38.07 | T31: 10.58 | AC31: 0
A32: 22 | B32: 89.8934 | C32: 4.9137 | D32: 1.0753 | E32: 0.116 | F32: 0.2105 | G32: 0.0037 | H32: 0.0532 | I32: 0.0401 | J32: 0.0422 | K32: 0.0027 | L32: 1.6135 | M32: 2.0357 | N32: 0.7507 | O32: 8231 | P32: 34.46 | Q32: 9.57 | R32: 9113 | S32: 38.16 | T32: 10.6 | U32: 11543 | V32: 48.33 | W32: 13.43 | X32: -9.8 | Y32: -10.3 | Z32: 0.0001 | AA32: 0.0004 | AB32: відс. | AC32: 100 | AD32: ОК
A33: 23 | O33: 8231 | P33: 34.46 | Q33: 9.57 | R33: 9113 | S33: 38.16 | T33: 10.6 | AC33: 0 | AD33: =IF(AC33=100,"ОК"," ") -> 
A34: 24 | O34: 8231 | P34: 34.46 | Q34: 9.57 | R34: 9113 | S34: 38.16 | T34: 10.6 | AC34: 0
A35: 25 | O35: 8231 | P35: 34.46 | Q35: 9.57 | R35: 9113 | S35: 38.16 | T35: 10.6 | AC35: 0
A36: 26 | O36: 8231 | P36: 34.46 | Q36: 9.57 | R36: 9113 | S36: 38.16 | T36: 10.6 | AC36: 0
A37: 27 | O37: 8231 | P37: 34.46 | Q37: 9.57 | R37: 9113 | S37: 38.16 | T37: 10.6 | AC37: 0
A38: 28 | O38: 8231 | P38: 34.46 | Q38: 9.57 | R38: 9113 | S38: 38.16 | T38: 10.6 | AC38: 0
A39: 29 | B39: 89.5209 | C39: 4.9067 | D39: 1.2967 | E39: 0.1393 | F39: 0.2518 | G39: 0.0039 | H39: 0.0677 | I39: 0.0546 | J39: 0.057 | K39: 0.0035 | L39: 1.7114 | M39: 1.9863 | N39: 0.7555 | O39: 8278 | P39: 34.66 | Q39: 9.63 | R39: 9163 | S39: 38.36 | T39: 10.66 | U39: 11570 | V39: 48.44 | W39: 13.46 | X39: -8.7 | Y39: -9.5 | Z39: 0.0001 | AA39: 0.0004 | AB39: відс. | AC39: 99.9998
A40: 30 | O40: 8278 | P40: 34.66 | Q40: 9.63 | R40: 9163 | S40: 38.36 | T40: 10.66 | AC40: 0
A41: 31 | O41: 8278 | P41: 34.66 | Q41: 9.63 | R41: 9163 | S41: 38.36 | T41: 10.66 | AC41: 0
A42: Рівень одоризації відповідає чинним нормативним документам | O42: =SUMPRODUCT(O11:O41,' розрахунок'!M7:M37)/' розрахунок'!M38 -> 8237.338911 | P42: =SUMPRODUCT(P11:P41,' розрахунок'!M7:M37)/' розрахунок'!M38 -> 34.48770104 | Q42: =SUMPRODUCT(Q11:Q41,' розрахунок'!M7:M37)/' розрахунок'!M38 -> 9.580644947 | R42: 9120 | S42: =SUMPRODUCT(S11:S41,' розрахунок'!M7:M37)/' розрахунок'!M38 -> 38.1844505 | T42: =SUMPRODUCT(T11:T41,' розрахунок'!M7:M37)/' розрахунок'!M38 -> 10.61064495
H43: Середньозважене значення теплоти згоряння:
B46: Начальник управління Чернігівського ЛВУМГ Шутішин В.О. 01.06.2017 р.
C47: Підрозділу підприємства, якому підпорядкована лабораторія | O47: прізвище | R47: підпис | V47: дата
B48: Завідувач лабораторією Лапа І.О. 01.06.2017 р.
C49: Лабораторія, де здійснювалось вимірювання газу | O49: прізвище | R49: підпис | V49: дата
B50: Начальник служби газовимірювання та метрології Макаров О.В. 01.06.2017 р.
C51: Підрозділу, відповідального за облік газу за маршрутом | O51: прізвище | R51: підпис | V51: дата

Sheet розрахунок
A2: Додаток до Паспорту фізико-хімічних показників природного газу по маршруту № 168
A4: Число місяця | B4: Теплота згоряння вища, МДж/м3 | C4: Чернігівська область | M4: Загальний обсяг газу, м3
C5: Обсяг газу переданого за добу, м3
C6: ГРС Серединка
A7: 1 | B7: 38.08 | C7: 512 | M7: =SUM(C7:L7) -> 512
A8: 2 | B8: 38.08 | C8: 519 | M8: 519
A9: 3 | B9: 38.08 | C9: 437 | M9: 437
A10: 4 | B10: 38.25 | C10: 424 | M10: 424
A11: 5 | B11: 38.25 | C11: 420 | M11: 420
A12: 6 | B12: 38.25 | C12: 404 | M12: 404
A13: 7 | B13: 38.25 | C13: 378 | M13: 378
A14: 8 | B14: 38.25 | C14: 412 | M14: 412
A15: 9 | B15: 38.25 | C15: 521 | M15: 521
A16: 10 | B16: 38.25 | C16: 760 | M16: 760
A17: 11 | B17: 38.25 | C17: 777 | M17: 777
A18: 12 | B18: 38.25 | C18: 630 | M18: 630
A19: 13 | B19: 38.25 | C19: 828 | M19: 828
A20: 14 | B20: 38.25 | C20: 592 | M20: 592
A21: 15 | B21: 38.07 | C21: 420 | M21: 420
A22: 16 | B22: 38.07 | C22: 432 | M22: 432
A23: 17 | B23: 38.07 | C23: 474 | M23: 474
A24: 18 | B24: 38.07 | C24: 439 | M24: 439
A25: 19 | B25: 38.07 | C25: 383 | M25: 383
A26: 20 | B26: 38.07 | C26: 408 | M26: 408
A27: 21 | B27: 38.07 | C27: 386 | M27: 386
A28: 22 | B28: 38.16 | C28: 322 | M28: 322
A29: 23 | B29: 38.16 | C29: 269 | M29: 269
A30: 24 | B30: 38.16 | C30: 298 | M30: 298
A31: 25 | B31: 38.16 | C31: 293 | M31: 293
A32: 26 | B32: 38.16 | C32: 340 | M32: 340
A33: 27 | B33: 38.16 | C33: 358 | M33: 358
A34: 28 | B34: 38.16 | C34: 327 | M34: 327
A35: 29 | B35: 38.36 | C35: 262 | M35: 262
A36: 30 | B36: 38.36 | C36: 270 | M36: 270
A37: 31 | B37: 38.36 | C37: 272 | M37: 272
A38: Загальний обсяг газу, м3 | C38: =SUM(C7:C37) -> 13567 | M38: =SUM(M7:M37) -> 13567
A39: Енергія, МДж | C39: =SUMPRODUCT(B7:B37,C7:C37) -> 518048.44 | M39: =SUMPRODUCT(B7:B37,M7:M37) -> 518048.44
A40: Теплота згоряння (середньозважене значення за місяць), МДж/м³ | C40: =C39/C38 -> 38.1844505 | M40: =M39/M38 -> 38.1844505
A41: Теплота згоряння (середньозважене значення за місяць), ккал/м³ | C41: =C40*238.8459 -> 9120.199447 | M41: =M40*238.8459 -> 9120.199447
A42: Теплота згоряння (середньозважене значення за місяць), кВт*год./м³ | C42: =C40/3.6 -> 10.60679181 | M42: =M40/3.6 -> 10.60679181

Sheet додаток
A2: Додаток до Паспорту фізико-хімічних показників природного газу № 168
A4: Область | B4: ГРС, прямий споживач | C4: Cередньозважене значення вищої теплоти згоряння
C5: МДж/м³ | D5: ккал/м³ | E5: кВт*год./м³
A6: Чернігівська область | B6: ГРС Серединка | C6: 38.18 | D6: 9120 | E6: 10.61
A7: Середньозважене значення вищої теплоти згоряння по маршруту № 168 | C7: 38.18 | D7: 9120 | E7: 10.61
A11: Начальник управління Чернігівського ЛВУМГ | D11: Шутішин В.О. | F11: 01.06.2017 р.
A12: Підрозділу підприємства, якому підпорядкована лабораторія | D12: прізвище | E12: підпис | F12: дата
A13: Завідувач лабораторією | D13: Лапа І.О. | F13: 01.06.2017 р.
A14: Лабораторія, де здійснювалось вимірювання газу | D14: прізвище | E14: підпис | F14: дата
A15: Начальник служби газовимірювання та метрології | D15: Макаров О.В. | F15: 01.06.2017 р.
A16: Підрозділу, відповідального за облік газу за маршрутом | D16: прізвище | E16: підпис | F16: дата

Sheet variablesList (hidden)
A1: 3 | B1: x:\gaysin | C1: 10, 11, 24, 25, 127, 128, 132, 180, 207, 215 | D1: x:\
B2: x:\Illinci
B3: x:\Talne
